Cogmind - Beta 14 @@@ ROGUE MODE // 2024.09.17 @ 13:15:45 Player: YA-B01 Result: Destroyed by B-86 Titan with Hardcell Cannon Performance ------------- Evolutions (7) 3500 Regions Visited (23) 4600 Robots Destroyed (258) 1290 Value Destroyed (9805) 9805 Prototype IDs (30) 600 Alien Tech Used (0) 0 Bonus (4241) 4241 TOTAL SCORE: 24036 Bonus ------- High Alert Combat Kills 759 Follower Combat Kills 1199 Entered Garrisons 600 Used RIF Installer 1500 Entered DSFs 500 Friendly Fire -317 Cogmind --------- Core Integrity 0/1300 Matter 190/300 Energy 99/100 System Corruption 2% Temperature Cool (9) Movement Core (50) Location -3/Research Parts ------- > --- POWER (1) -------- (None) > --- PROPULSION (5) --- (None) > --- UTILITY (12) ----- 0b10 Decoder Chip [Looter] > --- WEAPON (3) ------- (None) > --- INVENTORY (5) ---- Improved Transmission Jammer Dispersion Rifle Nova Cannon Hardcell Cannon Improved Plasma Cutter Peak State ------------ > --- POWER ------------ Light Nuclear Core > --- PROPULSION ------- Field Propulsion Array Field Propulsion Array > --- UTILITY ---------- Advanced Signal Interpreter Advanced Terrain Scan Processor 0b10 Decoder Chip [Looter] Advanced Target Analyzer Advanced Target Analyzer Advanced Target Analyzer Advanced Target Analyzer Advanced Target Analyzer Advanced Target Analyzer Relay Coupler [NC] Relay Coupler [Brawler] > --- WEAPON ----------- Phase Gun > --- INVENTORY -------- Advanced VSS Leg Improved Transmission Jammer Remote Datajack Improved Remote Datajack Improved Plasma Cutter [Rating: 100] Favorites ----------- Power Micro Nuclear Core Engine Deuterium Engine Power Core Micro Nuclear Core Propulsion Armored Leg Treads Armored Treads Leg Armored Leg Wheel Centrium Wheel Hover Unit Improved Gyrokinetic Inverter Flight Unit Field Propulsion Drive Utility Medium Storage Unit Device Improved Terrain Scanner Storage Medium Storage Unit Processor Advanced Signal Interpreter Hackware Hacking Suite Protection Improved Light Armor Plating Weapon Katana Energy Gun Precision Beam Rifle Energy Cannon Heavy Ion Cannon Ballistic Gun Heavy Machine Gun Ballistic Cannon Hardcell Cannon Launcher Shock Bomb Launcher Special Weapon Remote Datajack Impact Weapon Great Maul Slashing Weapon Katana Special Melee Weapon Improved Datajack Build | -11 -10 -9 -8 -8 -8 -7 -7 -7 -6 -6 -6 -6 -5 -5 -5 -5 -4 -4 -4 -4 -4 -4 -3 ------- Run | Yrd Mat Mat Mat Gar Mat Fac Gar Fac Fac Was Fac DSF Fac Upp Upp War Pro Fac Gar Fac Upp Upp Res Slots Evolved 14 | . . 2 2 . . 2 . . 2 . . . 2 . . . . 2 . . . . 2 Power . | . . . . . . . . . . . . . . . . . . . . . . . . Propulsion 3 | . . 2 . . . . . . . . . . . . . . . . . . . . 1 Utility 10 | . . . 2 . . 2 . . 2 . . . 2 . . . . 1 . . . . 1 Weapon 1 | . . . . . . . . . . . . . . . . . . 1 . . . . . Parts Attached 424 | 7 18 50 65 26 33 12 44 26 9 4 . 12 9 13 18 . 10 27 6 5 18 . 12 Power 32 | 1 3 5 3 2 4 1 2 1 . . . . 1 2 2 . 1 2 . 1 1 . . Engine 19 | 1 3 5 2 1 2 . 1 . . . . . . 2 2 . . . . . . . . Core 13 | . . . 1 1 2 1 1 1 . . . . 1 . . . 1 2 . 1 1 . . Reactor . | . . . . . . . . . . . . . . . . . . . . . . . . Propulsion 115 | 3 5 23 15 7 6 1 12 4 . . . 8 . 1 . . 1 14 . 3 5 . 7 Treads 56 | 2 5 23 14 7 3 1 1 . . . . . . . . . . . . . . . . Leg 38 | . . . 1 . 3 . 11 4 . . . 8 . 1 . . . 2 . . 5 . 3 Wheel 4 | 1 . . . . . . . . . . . . . . . . 1 1 . . . . 1 Hover 5 | . . . . . . . . . . . . . . . . . . 2 . 1 . . 2 Flight 12 | . . . . . . . . . . . . . . . . . . 9 . 2 . . 1 Utility 93 | 1 3 6 10 7 5 3 7 13 6 1 . 3 4 4 2 . 3 . 6 . 6 . 3 Device 35 | . 1 2 7 2 2 1 . 9 2 . . 1 1 1 1 . 1 . . . 1 . 3 Storage 4 | 1 1 1 . . . . . 1 . . . . . . . . . . . . . . . Processor 18 | . . . 1 . 2 . 1 1 2 . . . . 1 . . 1 . 6 . 3 . . Hackware 18 | . . . . 4 1 1 4 . 2 . . 2 1 1 . . 1 . . . 1 . . Protection 18 | . 1 3 2 1 . 1 2 2 . 1 . . 2 1 1 . . . . . 1 . . Artifact . | . . . . . . . . . . . . . . . . . . . . . . . . Weapon 184 | 2 7 16 37 10 18 7 23 8 3 3 . 1 4 6 14 . 5 11 . 1 6 . 2 Energy Gun 63 | 2 4 16 18 3 6 2 2 1 . . . . 1 3 3 . . 2 . . . . . Energy Cannon 5 | . 2 . . . 1 . . 1 . . . . . . . . . . . . . . 1 Ballistic Gun 11 | . . . . . 1 . . . . . . . . . 3 . 1 6 . . . . . Ballistic Cannon 22 | . 1 . 3 1 2 . 1 3 1 2 . 1 1 1 2 . . . . 1 2 . . Launcher 19 | . . . 6 1 1 . 7 1 . . . . . . 3 . . . . . . . . Special Weapon 11 | . . . . . . . 4 . . . . . 1 2 1 . 2 1 . . . . . Impact Weapon 11 | . . . . . 1 . . . 2 1 . . 1 . 2 . 2 2 . . . . . Slashing Weapon 31 | . . . 6 2 6 3 7 2 . . . . . . . . . . . . 4 . 1 Piercing Weapon . | . . . . . . . . . . . . . . . . . . . . . . . . Special Melee Weapon 11 | . . . 4 3 . 2 2 . . . . . . . . . . . . . . . . Unidentified Prototypes 5 | . . 1 . . 1 . . . . . . . . . 1 . . . . . . . 2 Corrupted Parts 1 | . . . . . . . 1 . . . . . . . . . . . . . . . . System Corruption 7 | . . . . . . . 7 . . . . . . . . . . . . . . . . Parts Lost 93 | . 2 2 8 4 1 . 8 1 . . . . . 4 11 3 4 16 1 3 11 1 13 Power 10 | . . 1 2 1 . . 1 . . . . . . 1 1 . . 1 1 . 1 . . Propulsion 29 | . . . 1 2 . . 2 . . . . . . . 4 . 1 7 . 1 5 . 6 Utility 30 | . 1 . 4 1 1 . 2 . . . . . . 1 3 2 2 . . 1 5 1 6 Weapon 24 | . 1 1 1 . . . 3 1 . . . . . 2 3 1 1 8 . 1 . . 1 Highest Loss Streak 11 | . 1 1 2 3 1 . 3 1 . . . . . 3 5 3 3 7 1 2 11 1 7 To Critical Strikes 1 | . . . . . . . . . . . . . . . . . . 1 . . . . . Average Slot Usage (%) 91 | . 95 98 92 97 99 100 98 99 97 94 93 93 97 99 88 49 45 43 58 77 78 36 35 Engine 4 | . 13 10 7 6 5 3 3 . . . . . . 2 3 . . . . . . . . Core 2 | . . . . 2 3 3 3 7 6 6 6 6 5 1 . . 1 1 3 . 4 . . Treads 14 | . 27 43 35 35 16 7 4 . . . . . . . . . . . . . . . . Leg 12 | . . . . . 19 23 25 30 26 26 26 26 23 22 18 . . 2 . . 5 . 4 Device 5 | . 2 6 17 9 5 2 . 4 6 1 . . 4 3 3 . 1 . . . 4 . 3 Storage 7 | . 14 11 9 9 9 7 7 7 6 6 6 6 5 5 5 5 . . . . . . . Processor 7 | . . . 2 3 . 7 9 9 6 6 6 6 5 11 11 11 16 15 28 46 36 31 22 Hackware 16 | . . . . 8 21 23 21 23 30 33 33 33 33 36 32 21 14 10 10 10 13 . . Protection 2 | . 7 4 1 5 . 4 5 . . . . . 4 . . 5 1 . . . . . . Energy Gun 8 | . 23 21 12 8 8 10 5 4 . . . . 3 4 2 4 . 1 5 4 . . . Energy Cannon 1 | . 3 . . . . . . 2 6 6 6 6 4 . . . . . . . . . . Ballistic Cannon 1 | . . . . 1 2 . . 5 1 . . 4 1 2 3 . . . . . . . . Slashing Weapon 1 | . . . 3 5 5 3 4 1 . . . . . . . . . . . . 2 5 . Peak Build Rating 100 | 6 13 24 32 33 32 40 49 54 61 57 52 64 71 72 77 28 48 60 100 99 85 37 70 Average Rating 40 | 5 9 16 28 30 29 38 41 51 54 52 52 57 70 69 61 26 30 38 75 94 72 33 46 On Entrance 41 | . 6 13 24 31 30 29 39 42 51 57 52 52 60 71 70 28 18 20 58 97 78 37 33 Naked Turns . | . . . . . . . . . . . . . . . . . . . . . . . . Heaviest Build 43 | 12 21 31 36 32 26 25 33 41 42 36 28 34 43 39 41 13 10 15 11 15 18 2 15 Greatest Support 89 | 40 46 89 80 80 80 37 65 78 73 73 73 83 64 64 48 3 28 22 30 22 60 3 58 Greatest Overweight (x) 5 | . . . 1 . 2 . 1 . . . . . . . 5 4 3 2 . 1 2 . 4 Average Overweight (x) . | . . . . . . . . . . . . . . . . 3 . . . . . . . Largest Inventory Capacity 10 | 8 10 10 10 10 10 10 10 10 10 10 10 10 10 10 10 10 10 5 5 5 5 5 5 Average Capacity 9 | 7 9 10 10 10 10 10 10 10 10 10 10 10 10 10 10 10 5 5 5 5 5 5 5 Most Carried 10 | 3 10 10 10 10 10 10 10 10 10 10 10 10 10 10 10 7 6 5 5 5 5 5 5 Average Carried 8 | 2 8 9 9 10 9 8 9 9 9 9 10 10 9 9 9 7 4 4 5 5 4 5 4 Final Capacity 10 | 8 10 10 10 10 10 10 10 10 10 10 10 10 10 10 10 10 5 5 5 5 5 5 5 Final Carried 10 | 3 10 10 10 10 9 10 10 10 10 10 10 10 10 10 7 7 5 5 5 5 5 5 5 Class Distribution -------------------- 42% | Mutant 29% | Hacker-Mutant 20% | Scavenger-Mutant 5% | Bothacker-Mutant Dominant Class ---------------- Mutant | -10/Materials Mutant | -9/Materials Mutant | -8/Materials Scavenger-Mutant | -8/Garrison Scavenger-Mutant | -8/Materials Scavenger-Mutant | -7/Factory Scavenger-Mutant | -7/Garrison Bothacker-Mutant | -7/Factory Hacker-Mutant | -6/Factory Hacker-Mutant | -6/Waste Hacker-Mutant | -6/Factory Hacker-Mutant | -6/DSF Hacker-Mutant | -5/Factory Hacker-Mutant | -5/Upper Caves Hacker-Mutant | -5/Upper Caves Hacker-Mutant | -5/Warlord Mutant | -4/Proximity Caves Mutant | -4/Factory Mutant | -4/Garrison Mutant | -4/Factory Mutant | -4/Upper Caves Mutant | -4/Upper Caves Mutant | -3/Research Resources | -11 -10 -9 -8 -8 -8 -7 -7 -7 -6 -6 -6 -6 -5 -5 -5 -5 -4 -4 -4 -4 -4 -4 -3 ----------- Run | Yrd Mat Mat Mat Gar Mat Fac Gar Fac Fac Was Fac DSF Fac Upp Upp War Pro Fac Gar Fac Upp Upp Res Matter Collected 5964 | 270 156 468 777 295 564 117 650 522 111 78 . 162 132 211 578 . 121 253 . 39 398 52 10 Remotely . | . . . . . . . . . . . . . . . . . . . . . . . . Salvage Created 9464 | 291 564 1650 1643 596 691 148 855 401 111 . . 71 729 315 544 . 218 288 . 42 307 . . Parts 465 | 28 34 96 69 26 52 10 29 28 7 . . 3 16 15 14 . 3 20 . 1 14 . . Haulers Intercepted 18 | . 2 6 4 . 3 . . 1 . . . . 2 . . . . . . . . . . Recyclers Shooed 10 | 1 4 3 1 . . 1 . . . . . . . . . . . . . . . . . Parts Field Recycled . | . . . . . . . . . . . . . . . . . . . . . . . . Retrieved Matter . | . . . . . . . . . . . . . . . . . . . . . . . . Parts Self-Destructed 33 | . . . . . . . . . . . . . . 7 15 . . . . . 11 . . Prevented 11 | . . . . . . . . . . . . . . 8 2 . 1 . . . . . . Kills | -11 -10 -9 -8 -8 -8 -7 -7 -7 -6 -6 -6 -6 -5 -5 -5 -5 -4 -4 -4 -4 -4 -4 -3 ------- Run | Yrd Mat Mat Mat Gar Mat Fac Gar Fac Fac Was Fac DSF Fac Upp Upp War Pro Fac Gar Fac Upp Upp Res Combat Hostiles Destroyed 178 | . 10 29 30 17 14 2 19 7 2 . . 1 2 4 17 . 3 13 . 1 7 . . Melee 26 | . . . . 7 6 . 6 . 1 . . . . . . . 1 1 . . 4 . . Guns 89 | . 9 27 20 4 4 2 5 1 . . . . . 3 3 . . 10 . 1 . . . Cannons 26 | . . . 3 3 3 . . 6 1 . . 1 2 . 4 . . . . . 3 . . AOE 28 | . 1 2 5 3 . . 7 . . . . . . . 10 . . . . . . . . Classes Destroyed 19 | 3 6 2 2 . . 1 . . . . . . . 2 2 . 1 . . . . . . Worker 16 | 3 2 3 3 . 2 1 . . . . . . 1 . . . . . . 1 . . . Builder 2 | . 1 . . . . . . . . . . . 1 . . . . . . . . . . Tunneler 11 | 9 . 1 1 . . . . . . . . . . . . . . . . . . . . Hauler 18 | . 2 6 4 . 3 . . 1 . . . . 2 . . . . . . . . . . Recycler 11 | 1 2 4 . . . . . 1 . . . . 3 . . . . . . . . . . Minesweeper 1 | . . . . . . . . . . . . . . 1 . . . . . . . . . Operator 5 | . 1 1 2 . . . . . . . . . . 1 . . . . . . . . . Watcher 15 | . 3 3 3 . 1 1 . 2 1 . . . 1 . . . . . . . . . . Swarmer 48 | . 5 8 . 6 5 . 4 1 . . . . . . . . 1 13 . 1 4 . . Grunt 68 | . 5 10 19 8 3 . 12 1 . . . . . 3 6 . 1 . . . . . . Brawler 4 | . . . 1 . . . . . . . . . . . 1 . . . . . 2 . . Duelist 4 | . . 1 1 . . . . . . . . . . . 2 . . . . . . . . Sentry 33 | . . 10 7 3 6 . 3 1 1 . . . . . 1 . 1 . . . . . . Specialist 3 | . . . . . . . . . . . . . . . 3 . . . . . . . . Hunter 5 | . . . 2 . . . . . . . . 1 . . 2 . . . . . . . . Programmer 11 | . . . . . . 2 . 4 1 . . . 2 . 1 . . . . . 1 . . Behemoth 1 | . . . . . . . . . . . . . . . 1 . . . . . . . . Samaritan 1 | . . . . . . . . . . . . . . . . . 1 . . . . . . Savage 1 | . . . . . . . . . . . . . . . . . . . . . 1 . . Mutant 1 | . . . . . . . . . . . . . . 1 . . . . . . . . . Best Kill Streak 7 | 3 4 7 4 5 3 1 3 2 1 . . 1 5 3 6 . 2 5 . 1 4 . . Combat Bots Only 6 | . 4 6 4 5 3 1 3 1 1 . . 1 2 3 6 . 2 5 . 1 4 . . Max Kills in Single Turn 4 | 1 2 4 2 2 1 1 1 1 1 . . 1 1 1 3 . 1 1 . 1 1 . . Gunslinging 1 | . 1 . . . . . . . . . . . . . . . . . . . . . . Exploded 3 | . 1 1 2 2 . . 1 . . . . . . . 3 . . . . . . . . Melee 1 | . . . . 1 1 . 1 . 1 . . . . . . . 1 1 . . 1 . . Uniques/NPCs Destroyed . | . . . . . . . . . . . . . . . . . . . . . . . . Combat | -11 -10 -9 -8 -8 -8 -7 -7 -7 -6 -6 -6 -6 -5 -5 -5 -5 -4 -4 -4 -4 -4 -4 -3 -------- Run | Yrd Mat Mat Mat Gar Mat Fac Gar Fac Fac Was Fac DSF Fac Upp Upp War Pro Fac Gar Fac Upp Upp Res Hostile Shots Fired 1535 | . 48 116 170 100 49 10 142 62 41 . . 9 20 38 138 . 69 208 33 31 99 5 147 Missed 527 | . 12 30 56 15 20 3 49 29 19 . . 2 5 14 48 . 20 75 20 12 38 2 58 Damage Taken 17659 | . 445 1358 1888 1270 352 107 1317 375 120 . . 201 376 724 1675 117 775 2270 196 299 1274 47 2473 Core 3971 | . 83 176 139 99 14 32 141 63 8 . . 55 75 25 261 33 347 548 40 79 432 14 1307 Absorbed by Shields 26 | . . . . . . . . . 26 . . . . . . . . . . . . . . Redirected to Shielding 35 | . . . . . . . . . . . . . . . 12 6 17 . . . . . . Regen/Repaired (Parts) 218 | . . 106 . . . . . . . 19 . 61 8 24 . . . . . . . . . Core Remaining (%) 57 | 100 66 56 . . 54 . . 66 . . . 92 . . . . 25 . . . . 3 . Volleys Fired 758 | 64 56 99 122 28 40 10 70 33 3 . . 6 27 29 55 1 12 64 12 12 14 . 1 Largest 3 | 1 2 2 2 2 2 2 1 2 2 . . 2 2 2 2 1 1 3 1 1 1 . 1 Hottest 215 | 50 110 121 130 130 130 130 69 134 130 . . 130 130 130 215 50 30 111 88 88 65 . 113 Shots Fired 1121 | 64 108 193 207 43 60 20 71 60 6 . . 12 30 43 73 1 12 79 12 12 14 . 1 Gun 856 | 64 100 193 177 37 49 20 28 11 . . . . 21 26 29 1 1 77 12 10 . . . Cannon 174 | . 8 . 16 4 11 . 7 49 6 . . 12 9 8 27 . . . . 2 14 . 1 Launcher 48 | . . . 14 2 . . 19 . . . . . . . 13 . . . . . . . . Special 43 | . . . . . . . 17 . . . . . . 9 4 . 11 2 . . . . . Kinetic 204 | . 1 . 16 4 11 . 7 33 3 . . 6 6 8 32 . 1 60 . 2 14 . . Thermal 674 | 64 66 135 168 37 49 20 28 27 3 . . 6 3 . 17 1 10 17 12 10 . . 1 Explosive 18 | . . . 1 2 . . 2 . . . . . . . 13 . . . . . . . . Electromagnetic 192 | . 41 58 22 . . . 17 . . . . . 21 26 7 . . . . . . . . Robot Hit Streak 34 | 7 9 21 34 15 9 8 8 12 2 . . 3 11 14 15 . 5 9 . 12 7 . . Robot Miss Streak 9 | 5 6 9 5 2 7 1 3 3 4 . . 3 4 3 3 . 2 7 . 2 1 . . Penetration Max . | . . . . . . . . . . . . . . . . . . . . . . . . Secondary Targets 6 | . 2 2 . 1 . . . . . . . . . . . . . 1 . . . . . Max Gunslinging Chain 1 | . 1 1 . 1 . . . . . . . . . . . . . 1 . . . . . Shots Hit Robots 859 | 38 57 149 172 54 55 16 57 36 5 . . 4 29 32 56 . 16 53 . 7 23 . . Core Hits 538 | 14 28 140 142 27 32 7 35 14 2 . . 2 12 10 37 . 4 20 . 2 10 . . Critical Kills 1 | . . . . . . . . . 1 . . . . . . . . . . . . . . Critical Parts Destroyed 11 | . . . . . . . . . . . . . 5 . . . 3 3 . . . . . Critical Strikes 56 | 2 4 2 7 3 6 . 4 4 1 . . . 5 2 6 . 3 3 . 1 3 . . Burn 23 | 2 4 2 6 . 4 . . . . . . . . . 4 . . . . 1 . . . Blast 12 | . . . 1 . . . 1 3 . . . . . 2 2 . . . . . 3 . . Smash 12 | . . . . . . . . . 1 . . . 5 . . . 3 3 . . . . . Sever 9 | . . . . 3 2 . 3 1 . . . . . . . . . . . . . . . Melee Attacks 242 | . . . 11 52 26 4 64 11 15 . . . 14 . 3 . 13 10 . . 14 . 5 Impact 55 | . . . . . . . . . 15 . . . 14 . 3 . 13 10 . . . . . Slashing 176 | . . . 10 47 26 4 59 11 . . . . . . . . . . . . 14 . 5 Piercing . | . . . . . . . . . . . . . . . . . . . . . . . . Sneak Attacks 11 | . . . 2 1 . . 2 . . . . . 6 . . . . . . . . . . Combat Hostiles 3 | . . . . . . . 2 . . . . . 1 . . . . . . . . . . Follow-up Attacks 3 | . . . . . . . . . . . . . . . . . . . . . 3 . . Damage Inflicted 22153 | 463 977 2585 3489 1539 1144 341 2148 1180 214 . . 115 1220 579 3574 . 412 1084 . 186 903 . . Guns 9425 | 463 729 2182 2337 356 547 341 309 178 . . . . 239 338 446 . 22 752 . 186 . . . Cannons 3716 | . 69 . 213 95 142 . 119 962 115 . . 115 257 241 868 . . . . . 520 . . Explosions 5114 | . 110 367 868 354 . . 1155 . . . . . . . 2260 . . . . . . . . Melee 3653 | . . . 61 734 445 . 565 34 99 . . . 724 . . . 283 327 . . 381 . . Ramming 138 | . 69 36 10 . 10 . . 6 . . . . . . . . . 5 . . 2 . . Kinetic 3836 | . . . 213 95 142 . 119 595 80 . . 33 203 241 956 . 22 617 . . 520 . . Thermal 8017 | 463 630 1677 2351 356 547 341 309 545 35 . . 82 54 . 199 . 107 135 . 186 . . . Explosive 3109 | . . 97 . 354 . . 398 . . . . . . . 2260 . . . . . . . . Electromagnetic 3400 | . 278 775 854 . . . 757 . . . . . 239 338 159 . . . . . . . . Impact 1433 | . . . . . . . . . 99 . . . 724 . . . 283 327 . . . . . Slashing 2220 | . . . 61 734 445 . 565 34 . . . . . . . . . . . . 381 . . Piercing . | . . . . . . . . . . . . . . . . . . . . . . . . Highest Corruption 12 | . . 2 5 5 5 . 9 9 1 1 1 1 . . 1 1 . 1 1 1 12 12 2 Average Corruption 3 | . . 2 3 5 5 . 1 5 1 1 1 1 . . 1 1 . 1 1 1 2 12 2 Corruption Purged 5 | . . . . . . . . 5 . . . . . . . . . . . . . . . Corruption Blocked . | . . . . . . . . . . . . . . . . . . . . . . . . Effects 197 | . . 6 27 29 60 . 14 23 6 4 2 3 . . 3 . . . 1 3 14 . 2 Message Errors 38 | . . 1 5 5 12 . 4 7 1 . . 1 . . 1 . . . . . 1 . . Matter Fused 41 | . . 1 6 6 13 . 2 3 2 . . . . . 1 . . . . . 5 . 2 Heat Flow Errors 27 | . . 1 2 3 9 . 3 2 3 . . . . . . . . . . 1 3 . . Energy Discharges 19 | . . . 6 2 4 . 1 4 . . . . . . 1 . . . . . 1 . . Parts Rejected 3 | . . . 1 . 1 . . . . . . . . . . . . . . 1 . . . Parts Fused 5 | . . . 1 . . . 1 1 . . 1 1 . . . . . . . . . . . Data Loss (minor) 32 | . . 1 2 7 10 . . 3 . 4 1 1 . . . . . . . 1 2 . . Data Loss (major) 15 | . . 1 2 3 5 . 1 . . . . . . . . . . . 1 . 2 . . Misfires 7 | . . . . 1 4 . 1 1 . . . . . . . . . . . . . . . Alerts 7 | . . 1 . 2 1 . 1 2 . . . . . . . . . . . . . . . Weapon Failures 3 | . . . 2 . 1 . . . . . . . . . . . . . . . . . . Overload Shots 2 | . . . . . . . . . . . . . . . 2 . . . . . . . . Effects 1 | . . . . . . . . . . . . . . . 1 . . . . . . . . Heat Surge 1 | . . . . . . . . . . . . . . . 1 . . . . . . . . Overflow Damage 1327 | . . 9 89 30 . . 39 46 30 . . . 556 42 52 . 197 200 . . 37 . . Projectiles 165 | . . . . . . . 39 46 . . . . . 42 . . 12 . . . 26 . . Explosions 176 | . . 9 89 26 . . . . . . . . . . 52 . . . . . . . . Melee 986 | . . . . 4 . . . . 30 . . . 556 . . . 185 200 . . 11 . . Knockbacks 30 | . 1 . . 4 4 . 2 4 1 . . . 2 4 4 . 1 1 . . 2 . . Impact 5 | . 1 . . . . . . . 1 . . . 1 . . . 1 1 . . . . . Kinetic 22 | . . . . 3 3 . 2 4 . . . . 1 4 3 . . . . . 2 . . Secondary 3 | . . . . 1 1 . . . . . . . . . 1 . . . . . . . . Self-Inflicted Damage 449 | . 35 195 99 . . . 10 . . . . . . . 109 . . . . . 1 . . Shots 10 | . 1 5 1 . . . 1 . . . . . . . 2 . . . . . . . . Rammed 37 | 1 20 10 3 . 2 . . . . . . . . . . . . . . . 1 . . Targets Rammed 45 | 1 23 10 4 . 3 . . 1 . . . . . . . . . 2 . . 1 . . Kicked 3 | . . . . . . . . 1 . . . . . . . . . 2 . . . . . Crushed 5 | . 3 . 1 . 1 . . . . . . . . . . . . . . . . . . Highest Temperature 366 | 160 303 278 171 366 273 162 243 249 230 . . . 60 108 361 265 . 164 132 199 133 . 20 Average Temperature 68 | 48 99 73 30 129 78 67 64 75 87 . . . 13 45 90 127 . 53 47 28 46 . 16 Received Heat Transfer 3871 | . 159 423 927 612 108 18 438 54 12 . . . 45 27 315 . 87 120 18 . 197 . 311 Effects 3 | . 2 . . 1 . . . . . . . . . . . . . . . . . . . Energy Bleed 1 | . . . . 1 . . . . . . . . . . . . . . . . . . . Interference 2 | . 2 . . . . . . . . . . . . . . . . . . . . . . Siege Activations . | . . . . . . . . . . . . . . . . . . . . . . . . Robots Corrupted 13 | . . . 2 . . . 1 . 1 . . . 4 1 . . 2 2 . . . . . Combat Hostiles 8 | . . . 2 . . . 1 . . . . . . 1 . . 2 2 . . . . . Parts Fried 22 | . 2 2 3 . . . 1 . 3 . . . 7 2 . . 1 1 . . . . . Impact Corruptions 30 | . . . . . . . . . 1 . . . 16 . . . 6 7 . . . . . Robots Melted 1 | . . . . . 1 . . . . . . . . . . . . . . . . . . Combat Hostiles 1 | . . . . . 1 . . . . . . . . . . . . . . . . . . Parts Melted 26 | 5 4 3 6 1 6 1 . . . . . . . . . . . . . . . . . Heat Transferred 16413 | 1517 1779 2834 4563 564 1443 629 592 777 37 . . 111 74 . 716 . 259 185 . 333 . . . Parts Sabotaged . | . . . . . . . . . . . . . . . . . . . . . . . . Parts Stolen . | . . . . . . . . . . . . . . . . . . . . . . . . Parts Stripped . | . . . . . . . . . . . . . . . . . . . . . . . . Power Chain Reactions 5 | . 1 3 1 . . . . . . . . . . . . . . . . . . . . Alert | -11 -10 -9 -8 -8 -8 -7 -7 -7 -6 -6 -6 -6 -5 -5 -5 -5 -4 -4 -4 -4 -4 -4 -3 ------- Run | Yrd Mat Mat Mat Gar Mat Fac Gar Fac Fac Was Fac DSF Fac Upp Upp War Pro Fac Gar Fac Upp Upp Res Peak Influence 1472 | 55 207 476 522 1038 584 185 1472 772 187 . . 300 610 . . . . 930 655 428 . . 579 Initial 772 | . 6 14 58 337 505 134 24 772 172 . . . 157 . . . . 600 530 343 . . 27 Average 278 | 16 44 192 190 693 290 88 593 472 41 . . 224 313 . . . . 751 563 342 . . 232 Maximum Alert Level 4 | . 1 2 2 3 2 . 4 3 . . . 1 2 . . . . 3 2 2 . . 2 Low Security (%) 48 | 100 98 58 59 . 25 100 15 . 100 100 100 36 15 . . . . . . . . . 57 Level 1 26 | . 1 38 27 9 52 . 27 36 . . . 63 61 . . . . . . 98 . . 17 Level 2 15 | . . 2 13 36 21 . 12 59 . . . . 22 . . . . 36 100 1 . . 25 Level 3 7 | . . . . 53 . . 28 3 . . . . . . . . . 63 . . . . . Level 4 1 | . . . . . . . 15 . . . . . . . . . . . . . . . . Level 5 . | . . . . . . . . . . . . . . . . . . . . . . . . High Security . | . . . . . . . . . . . . . . . . . . . . . . . . Max Security . | . . . . . . . . . . . . . . . . . . . . . . . . Sterilizations 1 | . . . . . . . . . . . . 1 . . . . . . . . . . . Squads Dispatched 40 | . 1 3 6 . 3 4 . 5 2 . . 2 5 . . . . 2 . . . . 7 Investigation 7 | . . 1 1 . . . . 1 1 . . . . . . . . 1 . . . . 2 Extermination 8 | . . . . . . 2 . 3 1 . . . 1 . . . . 1 . . . . . Reinforcement 19 | . 1 2 5 . . . . 1 . . . 2 3 . . . . . . . . . 5 Assault 1 | . . . . . . . . . . . . . 1 . . . . . . . . . . Garrison 5 | . . . . . 3 2 . . . . . . . . . . . . . . . . . Intercept . | . . . . . . . . . . . . . . . . . . . . . . . . Searches Triggered 3 | . . . . . . . . . . . . . . . . . . 2 . 1 . . . Construction Impeded 4 | . . . 3 . . . . 1 . . . . . . . . . . . . . . . Haulers Reinforced 2 | . . . . . . . . . . . . . 2 . . . . . . . . . . Active Scanning Responses . | . . . . . . . . . . . . . . . . . . . . . . . . Cargo Convoy Interrupts . | . . . . . . . . . . . . . . . . . . . . . . . . Stealth | -11 -10 -9 -8 -8 -8 -7 -7 -7 -6 -6 -6 -6 -5 -5 -5 -5 -4 -4 -4 -4 -4 -4 -3 --------- Run | Yrd Mat Mat Mat Gar Mat Fac Gar Fac Fac Was Fac DSF Fac Upp Upp War Pro Fac Gar Fac Upp Upp Res Distress Signals 20 | . . 4 6 . 3 . . . . . . . 2 . . . 2 2 . . . . 1 Communications Jammed . | . . . . . . . . . . . . . . . . . . . . . . . . Distress Signals . | . . . . . . . . . . . . . . . . . . . . . . . . Times Spotted 429 | . 23 43 54 22 26 5 44 12 3 . . 3 23 8 33 . 8 44 7 7 12 5 47 Peak Tracking Total 18 | . 4 5 6 5 3 2 5 3 1 . . 3 5 3 6 . 4 10 6 4 9 5 18 Tactical Retreats 53 | . . 1 3 2 1 . 10 1 . . . . . . 8 . 1 9 2 1 4 . 10 Traps | -11 -10 -9 -8 -8 -8 -7 -7 -7 -6 -6 -6 -6 -5 -5 -5 -5 -4 -4 -4 -4 -4 -4 -3 ------- Run | Yrd Mat Mat Mat Gar Mat Fac Gar Fac Fac Was Fac DSF Fac Upp Upp War Pro Fac Gar Fac Upp Upp Res Traps Triggered 27 | . 2 5 7 1 . . . . 2 . . . 2 . . 2 . . 2 . . . 4 Indirectly . | . . . . . . . . . . . . . . . . . . . . . . . . Trap Hack Attempts 30 | . . . 7 . . 16 7 . . . . . . . . . . . . . . . . Triggered . | . . . . . . . . . . . . . . . . . . . . . . . . Disarmed 3 | . . . 1 . . 2 . . . . . . . . . . . . . . . . . Reprogrammed 1 | . . . . . . . 1 . . . . . . . . . . . . . . . . Reused 2 | . . . . . . . . . . . . . . . 2 . . . . . . . . Traps Extracted . | . . . . . . . . . . . . . . . . . . . . . . . . Installed 2 | . . . . . . . . . . . . . . . 2 . . . . . . . . Triggered 9 | . . . . . . . 3 . . . . . . 4 2 . . . . . . . . Most Traps Carried 3 | . . . . . . . . . . . . . . 3 2 . . . . . . . . Machines | -11 -10 -9 -8 -8 -8 -7 -7 -7 -6 -6 -6 -6 -5 -5 -5 -5 -4 -4 -4 -4 -4 -4 -3 ---------- Run | Yrd Mat Mat Mat Gar Mat Fac Gar Fac Fac Was Fac DSF Fac Upp Upp War Pro Fac Gar Fac Upp Upp Res Machines Disabled 29 | . 2 5 3 4 1 . 6 1 . . . 1 3 1 1 . . 1 . . . . . Max in Single Turn 2 | . 1 2 2 2 . . 1 1 . . . 1 1 1 1 . . 1 . . . . . Garrison Relay 7 | . . . . 2 . . 5 . . . . . . . . . . . . . . . . Phase Generator 1 | . . . . 1 . . . . . . . . . . . . . . . . . . . Machines Repaired . | . . . . . . . . . . . . . . . . . . . . . . . . Machines Dismantled . | . . . . . . . . . . . . . . . . . . . . . . . . Machines Sabotaged . | . . . . . . . . . . . . . . . . . . . . . . . . Overloaded Fab Kills . | . . . . . . . . . . . . . . . . . . . . . . . . Hacking | -11 -10 -9 -8 -8 -8 -7 -7 -7 -6 -6 -6 -6 -5 -5 -5 -5 -4 -4 -4 -4 -4 -4 -3 --------- Run | Yrd Mat Mat Mat Gar Mat Fac Gar Fac Fac Was Fac DSF Fac Upp Upp War Pro Fac Gar Fac Upp Upp Res Machines Accessed 102 | . 9 16 10 2 10 2 3 8 10 . 1 . 5 1 1 . . 9 3 1 1 . 10 Terminals 66 | . 7 10 7 2 8 1 3 5 5 . 1 . 3 . . . . 5 3 . . . 6 Fabricators 5 | . . . . . . . . 1 1 . . . . . . . . 2 . . . . 1 Repair Stations 4 | . 1 2 . . . . . 1 . . . . . . . . . . . . . . . Recycling Units 11 | . 1 2 2 . . . . 1 1 . . . 1 . . . . 1 . 1 . . 1 Scanalyzers 10 | . . 2 . . 2 . . . 3 . . . 1 . . . . . . . . . 2 Garrison Access 3 | . . . 1 . . 1 . . . . . . . . . . . 1 . . . . . Total Hacks 305 | . 27 48 24 2 41 7 7 14 54 . 1 . 36 1 1 . . 18 6 2 1 . 15 Successful 179 | . 17 31 12 2 31 5 3 5 34 . 1 . 22 1 1 . . 5 2 1 1 . 5 Failed 125 | . 10 16 12 . 10 2 4 9 20 . . . 14 . . . . 13 4 1 . . 10 Catastrophic 23 | . 1 4 2 . 2 . . 3 3 . . . 1 . . . . 3 . . . . 4 Database Lockouts 1 | . . 1 . . . . . . . . . . . . . . . . . . . . . Manual 129 | . 13 26 8 . 19 4 . 8 14 . . . 21 . 1 . . 13 . . . . 2 Terminals 206 | . 24 29 20 2 24 5 7 11 28 . 1 . 27 . . . . 12 6 . . . 10 Fabricators 10 | . . . . . . . . 1 4 . . . . . . . . 4 . . . . 1 Repair Stations 10 | . 2 7 . . . . . 1 . . . . . . . . . . . . . . . Recycling Units 15 | . 1 4 2 . . . . 1 1 . . . 2 . . . . 1 . 2 . . 1 Scanalyzers 56 | . . 8 . . 17 . . . 21 . . . 7 . . . . . . . . . 3 Garrison Access 5 | . . . 2 . . 2 . . . . . . . . . . . 1 . . . . . Terminal Hacks 73 | . 9 10 6 2 6 2 3 3 11 . 1 . 11 1 1 . . 2 2 . 1 . 2 Record 4 | . . 1 . . . . . . 1 . . . . . . . . . . . . . 2 Part Schematic 3 | . 1 . 1 . . . . . 1 . . . . . . . . . . . . . . Robot Analysis 1 | . . . . . . . . . 1 . . . . . . . . . . . . . . Prototype ID Bank 14 | . 4 1 2 . 2 1 . . 2 . . . 1 . . . . 1 . . . . . Open Door 4 | . . . . . . . 1 . . . . . . 1 1 . . . . . 1 . . Open DSF 2 | . . . . . . . . . . . 1 . 1 . . . . . . . . . . Level Access Points 2 | . . 1 . . . . . . . . . . 1 . . . . . . . . . . Branch Access Points 2 | . . . . . . . . . 1 . . . 1 . . . . . . . . . . Emergency Access Points 4 | . . . . 1 . . 1 . 1 . . . . . . . . . 1 . . . . Alert Level 4 | . 1 1 1 . . . . 1 . . . . . . . . . . . . . . . Unreport Threat 13 | . . 3 1 . 2 . . 2 1 . . . 4 . . . . . . . . . . Locate Traps 9 | . 2 1 1 . 2 . . . 1 . . . 1 . . . . 1 . . . . . Patrol Status 1 | . . . . . . . . . . . . . 1 . . . . . . . . . . Recall Investigation 1 | . . 1 . . . . . . . . . . . . . . . . . . . . . Hauler Manifests 1 | . . . . . . . . . 1 . . . . . . . . . . . . . . Zone Layout 5 | . 1 1 . . . 1 . . 1 . . . 1 . . . . . . . . . . Garrison Registry 1 | . . . . . . . 1 . . . . . . . . . . . . . . . . Security Stations 2 | . . . . 1 . . . . . . . . . . . . . . 1 . . . . Fabricator Hacks 2 | . . . . . . . . . 2 . . . . . . . . . . . . . . Load Schematic 1 | . . . . . . . . . 1 . . . . . . . . . . . . . . Build 1 | . . . . . . . . . 1 . . . . . . . . . . . . . . Repair Station Hacks 8 | . 2 6 . . . . . . . . . . . . . . . . . . . . . Scan Component 4 | . 1 3 . . . . . . . . . . . . . . . . . . . . . Repair 4 | . 1 3 . . . . . . . . . . . . . . . . . . . . . Recycling Unit Hacks 8 | . 1 . 2 . . . . 1 . . . . 1 . . . . 1 . 1 . . 1 Retrieve Components 8 | . 1 . 2 . . . . 1 . . . . 1 . . . . 1 . 1 . . 1 Scanalyzer 50 | . . 7 . . 17 . . . 18 . . . 6 . . . . . . . . . 2 Insert Component 24 | . . 4 . . 8 . . . 9 . . . 2 . . . . . . . . . 1 Analyze 26 | . . 3 . . 9 . . . 9 . . . 4 . . . . . . . . . 1 Garrison Access Hacks 3 | . . . 1 . . 1 . . . . . . . . . . . 1 . . . . . Unlock Access 3 | . . . 1 . . 1 . . . . . . . . . . . 1 . . . . . Unauthorized Hacks 35 | . 5 8 3 . 8 2 . 1 3 . . . 4 . . . . 1 . . . . . Terminals 33 | . 5 8 3 . 8 2 . 1 2 . . . 4 . . . . . . . . . . Assimilate 4 | . 1 . . . 2 . . . . . . . 1 . . . . . . . . . . Botnet 21 | . 2 7 2 . 5 1 . 1 1 . . . 2 . . . . . . . . . . Operators 8 | . 2 1 1 . 1 1 . . 1 . . . 1 . . . . . . . . . . Fabricators 2 | . . . . . . . . . 1 . . . . . . . . 1 . . . . . Fabnet 2 | . . . . . . . . . 1 . . . . . . . . 1 . . . . . Repair Stations . | . . . . . . . . . . . . . . . . . . . . . . . . Recycling Units . | . . . . . . . . . . . . . . . . . . . . . . . . Scanalyzers . | . . . . . . . . . . . . . . . . . . . . . . . . Garrison Access . | . . . . . . . . . . . . . . . . . . . . . . . . Data Cores Recovered . | . . . . . . . . . . . . . . . . . . . . . . . . Used . | . . . . . . . . . . . . . . . . . . . . . . . . Hacking Detections 86 | . 7 14 8 1 10 2 2 8 9 . . . 3 . . . . 8 3 1 . . 10 Full Trace Events 5 | . . . . . . . 1 1 1 . . . . . . . . 1 . . . . 1 Feedback Events . | . . . . . . . . . . . . . . . . . . . . . . . . Feedback Blocked . | . . . . . . . . . . . . . . . . . . . . . . . . Robot Schematics Acquired . | . . . . . . . . . . . . . . . . . . . . . . . . Robots Built . | . . . . . . . . . . . . . . . . . . . . . . . . Authchips . | . . . . . . . . . . . . . . . . . . . . . . . . Time . | . . . . . . . . . . . . . . . . . . . . . . . . Total Robot Build Rating . | . . . . . . . . . . . . . . . . . . . . . . . . Part Schematics Acquired 24 | . 1 3 1 . 8 . . . 8 . . . 2 . . . . . . . . . 1 Parts Built 2 | . . . . . . . . . 2 . . . . . . . . . . . . . . Authchips . | . . . . . . . . . . . . . . . . . . . . . . . . Time 73 | . . . . . . . . . 73 . . . . . . . . . . . . . . Total Part Build Rating 6 | . . . . . . . . . 6 . . . . . . . . . . . . . . Parts Repaired 3 | . . 3 . . . . . . . . . . . . . . . . . . . . . Time 153 | . 38 115 . . . . . . . . . . . . . . . . . . . . . Parts Recycled . | . . . . . . . . . . . . . . . . . . . . . . . . Recycled Matter . | . . . . . . . . . . . . . . . . . . . . . . . . Retrieved Matter . | . . . . . . . . . . . . . . . . . . . . . . . . Retrieved Components 49 | . 9 . 12 . . . . 7 . . . . 10 . . . . 7 . 1 . . 3 Parts Scanalyzed 23 | . . 4 . . 8 . . . 8 . . . 2 . . . . . . . . . 1 Part Schematics Acquired 21 | . . 3 . . 8 . . . 7 . . . 2 . . . . . . . . . 1 Parts Damaged 2 | . . . . . 1 . . . 1 . . . . . . . . . . . . . . Bothacking | -11 -10 -9 -8 -8 -8 -7 -7 -7 -6 -6 -6 -6 -5 -5 -5 -5 -4 -4 -4 -4 -4 -4 -3 ------------ Run | Yrd Mat Mat Mat Gar Mat Fac Gar Fac Fac Was Fac DSF Fac Upp Upp War Pro Fac Gar Fac Upp Upp Res Used RIF Installer 3 | . . . . 1 . . 1 . . . . . . . . . . . 1 . . . . Hotswap 1 | . . . . . . . . . . . . . . . . . . . 1 . . . . Watcher Feeds 1 | . . . . . . . 1 . . . . . . . . . . . . . . . . Robots Hacked 21 | . . . 1 3 . . 8 . . . . . . 4 3 . 1 1 . . . . . Non-combat 4 | . . . 1 . . . . . . . . . . 1 . . 1 1 . . . . . Combat 17 | . . . . 3 . . 8 . . . . . . 3 3 . . . . . . . . Robot Hacks Applied 26 | . . . 1 3 . . 10 . . . . . . 6 3 . 1 2 . . . . . parse_system 4 | . . . . . . . 2 . . . . . . 1 . . 1 . . . . . . no_distress 1 | . . . 1 . . . . . . . . . . . . . . . . . . . . generate_anomaly 1 | . . . . . . . . . . . . . . 1 . . . . . . . . . generate_echo 1 | . . . . . . . . . . . . . . 1 . . . . . . . . . mark_security 1 | . . . . . . . . . . . . . . . . . . 1 . . . . . spike_heat 1 | . . . . . . . 1 . . . . . . . . . . . . . . . . overload_power 1 | . . . . . . . . . . . . . . . . . . 1 . . . . . amplify_resonance 1 | . . . . . . . . . . . . . . . 1 . . . . . . . . disable_weapons 1 | . . . . . . . 1 . . . . . . . . . . . . . . . . overwrite_iff 8 | . . . . 1 . . 4 . . . . . . 1 2 . . . . . . . . streamctrl_high 1 | . . . . 1 . . . . . . . . . . . . . . . . . . . formatsys_high 5 | . . . . 1 . . 2 . . . . . . 2 . . . . . . . . . Relay Couplers Released 27 | . . . . 6 . . 21 . . . . . . . . . . . . . . . . Machine Destruction 27 | . . . . 6 . . 21 . . . . . . . . . . . . . . . . Attached 11 | . . . . 4 . . 4 . . . . . 1 1 . . 1 . . . . . . Fabnet Peak Effective % 3 | . . . . . . . . . . . . . 3 3 3 3 1 1 1 1 1 1 3 Robots Rewired 3 | . . . . . . . 3 . . . . . . . . . . . . . . . . Allies Hacked . | . . . . . . . . . . . . . . . . . . . . . . . . Hacks Repelled . | . . . . . . . . . . . . . . . . . . . . . . . . Allies | -11 -10 -9 -8 -8 -8 -7 -7 -7 -6 -6 -6 -6 -5 -5 -5 -5 -4 -4 -4 -4 -4 -4 -3 -------- Run | Yrd Mat Mat Mat Gar Mat Fac Gar Fac Fac Was Fac DSF Fac Upp Upp War Pro Fac Gar Fac Upp Upp Res Total Allies 41 | . . . . 3 2 . 10 . . 20 . . 1 3 2 . . . . . . . . Largest Group 20 | . . . . 1 3 2 3 . . 20 18 18 10 3 4 . . . . . . . . Highest-Rated Group 718 | . . . . 16 51 35 72 . . 718 647 647 348 84 154 . . . . . . . . Highest-Rated Ally 50 | . . . . 16 26 26 32 . . 50 50 50 50 49 49 . . . . . . . . Total Orders 26 | . . . . . 19 4 1 . . . . . . 2 . . . . . . . . . STAY 12 | . . . . . 9 2 . . . . . . . 1 . . . . . . . . . FOLLOW 14 | . . . . . 10 2 1 . . . . . . 1 . . . . . . . . . Ally Attacks 259 | . . . . 5 20 . 59 . . . . 62 87 5 21 . . . . . . . . Total Damage 6747 | . . . . 39 551 . 1061 . . . . 1599 2648 179 670 . . . . . . . . Kills 44 | . . . . 1 6 . 6 . . . . 9 17 1 4 . . . . . . . . Allies Corrupted 1 | . . . . . . . . . . . . . 1 . . . . . . . . . . Allies Melted 1 | . . . . . . . 1 . . . . . . . . . . . . . . . . Intel | -11 -10 -9 -8 -8 -8 -7 -7 -7 -6 -6 -6 -6 -5 -5 -5 -5 -4 -4 -4 -4 -4 -4 -3 ------- Run | Yrd Mat Mat Mat Gar Mat Fac Gar Fac Fac Was Fac DSF Fac Upp Upp War Pro Fac Gar Fac Upp Upp Res Robot Analysis Total 1 | . . . . . . . . . 1 . . . . . . . . . . . . . . Derelict Logs Recovered 6 | . . . . . . . . . . . . . . 2 2 . 1 . . . 1 . . Drone Launches . | . . . . . . . . . . . . . . . . . . . . . . . . Drone Recoveries . | . . . . . . . . . . . . . . . . . . . . . . . . Decoded 0b10 Intel 94 | . . . . . . . . . . . . . . . . . . 36 10 21 . . 27 Items 94 | . . . . . . . . . . . . . . . . . . 36 10 21 . . 27 Exploration | -11 -10 -9 -8 -8 -8 -7 -7 -7 -6 -6 -6 -6 -5 -5 -5 -5 -4 -4 -4 -4 -4 -4 -3 ------------- Run | Yrd Mat Mat Mat Gar Mat Fac Gar Fac Fac Was Fac DSF Fac Upp Upp War Pro Fac Gar Fac Upp Upp Res Turns Passed 27932 | 581 2082 2535 4033 1198 2282 738 2132 1451 1325 407 81 269 1075 1900 2342 517 604 562 151 310 940 5 412 Spaces Moved 16843 | 276 1114 1202 1227 560 1362 317 1313 999 969 319 62 182 792 1217 1146 215 564 664 211 473 1020 9 630 Core 1596 | 1 . . . . . . . . . . . . . . 96 215 466 118 . 94 99 9 498 Treads 5348 | 267 1114 1202 1227 560 722 187 69 . . . . . . . . . . . . . . . . Legs 7790 | . . . . . 640 130 1244 999 969 319 62 182 792 1217 1050 . . 76 . . 82 . 28 Wheels 114 | 8 . . . . . . . . . . . . . . . . 98 8 . . . . . Hover 873 | . . . . . . . . . . . . . . . . . . 17 . 17 839 . . Flight 1122 | . . . . . . . . . . . . . . . . . . 445 211 362 . . 104 Fastest Speed 34 | 50 160 160 165 162 123 123 120 120 122 122 122 120 120 120 120 200 50 34 37 39 50 50 45 Average Speed 125 | 157 160 160 168 164 143 144 123 121 122 122 122 121 120 120 133 240 89 52 39 54 82 50 53 Slowest Speed 300 | 160 160 170 250 165 260 160 240 122 122 122 122 122 120 120 300 250 200 150 40 110 150 50 250 Overloaded Moves . | . . . . . . . . . . . . . . . . . . . . . . . . Propulsion Burnouts . | . . . . . . . . . . . . . . . . . . . . . . . . Robots Hopped 19 | . . . . . . . 3 . . . . . . . . . . 9 2 4 . . 1 Cave-ins Triggered . | . . . . . . . . . . . . . . . . . . . . . . . . Exploration Rate (%) 50 | 12 96 99 71 49 61 9 94 30 20 96 3 97 18 96 80 17 65 28 35 13 92 8 30 Regions Visited 23 Branch Regions 6 Pre-discovered Areas 1 | . . . . . . . . . . . . . . 1 . . . . . . . . . Known Exits Taken 15 | . . 1 1 . 1 1 . 1 . . 1 . 1 1 1 1 1 1 . 1 1 1 . Unknown Exits Taken 2 | 1 1 . . . . . . . . . . . . . . . . . . . . . . Scrap Searched 8 | . . . . . . . . . . . . . . 2 2 . 1 . . . 2 1 . Spaces Dug 99 | . . . 25 15 9 4 5 14 12 . . . 4 . 5 . . . . . . . 6 Terrain Destroyed 504 | . 4 72 50 115 9 4 12 25 14 . . 4 5 2 179 . . . . 2 1 . 6 Melee 64 | . . . 9 4 9 4 5 9 12 . . . 4 . 3 . . . . . . . 5 Projectile 39 | . . . 1 . . . 4 16 2 . . 4 1 2 5 . . . . 2 1 . 1 AOE 401 | . 4 72 40 111 . . 3 . . . . . . . 171 . . . . . . . . Terrain Rammed . | . . . . . . . . . . . . . . . . . . . . . . . . Walls Destroyed . | . . . . . . . . . . . . . . . . . . . . . . . . Machines Disabled . | . . . . . . . . . . . . . . . . . . . . . . . . Actions | -11 -10 -9 -8 -8 -8 -7 -7 -7 -6 -6 -6 -6 -5 -5 -5 -5 -4 -4 -4 -4 -4 -4 -3 --------- Run | Yrd Mat Mat Mat Gar Mat Fac Gar Fac Fac Was Fac DSF Fac Upp Upp War Pro Fac Gar Fac Upp Upp Res Total 22126 | 354 1289 1624 2954 718 1596 566 1662 1158 1076 339 67 220 855 1615 1876 215 613 778 260 509 1083 8 691 Wait 3497 | 2 58 212 1496 44 107 202 137 63 70 8 6 11 10 349 640 . 8 7 9 21 . . 37 Move 16785 | 275 1113 1201 1226 559 1361 317 1306 998 969 318 61 181 791 1216 1145 214 563 646 206 464 1019 8 628 Hop 19 | . . . . . . . 3 . . . . . . . . . . 9 2 4 . . 1 Pick Up 80 | 3 11 13 4 . 3 2 12 5 4 2 . . 3 5 3 . 1 3 . 1 3 . 2 Fast Attach 182 | 7 9 18 23 8 15 2 7 11 2 4 . 4 3 2 4 . 5 23 6 5 14 . 10 Attach 43 | . 2 4 2 . 1 2 7 3 2 . . . 2 3 5 . 2 4 . . 2 . 2 Detach 34 | 1 . 2 . 1 2 2 4 3 2 . . 2 . . 2 . 1 4 . . 6 . 2 Swap 199 | . 7 28 40 18 17 8 30 12 5 . . 8 4 8 9 . 3 . . . 2 . . Drop 185 | 1 10 37 19 8 21 1 15 18 4 7 . 8 1 3 8 . 5 6 . 2 8 . 3 Fire 758 | 64 56 99 122 28 40 10 70 33 3 . . 6 27 29 55 1 12 64 12 12 14 . 1 Melee 238 | . . . 11 52 26 4 64 11 15 . . . 14 . 3 . 13 10 . . 10 . 5 Ram 1 | . . . . . . . . . . . . . . . . . . . . . 1 . . Kick 3 | . . . . . . . . 1 . . . . . . . . . 2 . . . . . Crush 41 | 1 23 10 4 . 3 . . . . . . . . . . . . . . . . . . Escape Stasis 25 | . . . . . . . . . . . . . . . . . . . 25 . . . . Rewire 4 | . . . . . . . . . . . . . . . . . . . . . 4 . . Trap 32 | . . . 7 . . 16 7 . . . . . . . 2 . . . . . . . . Miscellaneous . | . . . . . . . . . . . . . . . . . . . . . . . . Route ------- -11/Scrapyard -10/Materials (discovered 5 exits: *Mat x3 / [*Min x2]) -9/Materials (discovered 5 exits: *Mat x3 / [*Min x2]) -8/Materials (discovered 2 exits: *Fac / Gar) -8/Garrison (discovered 2 exits: *Mat x2) -8/Materials (discovered 2 exits: *Fac / [*Sto]) -7/Factory -7/Garrison (discovered 3 exits: *Fac x3) -7/Factory (discovered 2 exits: *Fac / *Low) -6/Factory (discovered 5 exits: *Fac / *Low x2 / Ext x2) -6/Waste -6/Factory -6/DSF -5/Factory (discovered 6 exits: Fac x4 / *Upp x2) -5/Upper Caves -5/Upper Caves (discovered 2 exits: Fac / *War) -5/Warlord -4/Proximity Caves -4/Factory -4/Garrison -4/Factory -4/Upper Caves -4/Upper Caves -3/Research (discovered 1 exit: Arm) History --------- Turn | Location | Event 42 | -11/Scrapyard | Discovered new exit (range 15) 582 | -11/Scrapyard | Entered Materials 583 | -10/Materials | Build established: Mutant 903 | -10/Materials | Discovered new exit (range 15) 1060 | -10/Materials | Discovered new exit (range 16) 1291 | -10/Materials | Discovered new exit (range 15) 1876 | -10/Materials | Discovered new exit (range 8) 2570 | -10/Materials | Discovered new exit (range 9) 2664 | -10/Materials | Entered another Materials area 2664 | -9/Materials | Evolved 2 slots: Propulsion x2 2737 | -9/Materials | Central database locked down 2903 | -9/Materials | Discovered new exit (range 9) 3243 | -9/Materials | Repaired Imp. Treads? 3317 | -9/Materials | Repaired EM Shotgun? 3588 | -9/Materials | Identified exit to Materials 3662 | -9/Materials | Discovered new exit (range 8) 4710 | -9/Materials | Repaired Imp. EM Shotgun 4910 | -9/Materials | Build established: Scavenger-Mutant 5199 | -9/Materials | Entered another Materials area 5199 | -8/Materials | Evolved 2 slots: Utility x2 5475 | -8/Materials | Build established: Mutant 8678 | -8/Materials | Identified exit to Garrison 8876 | -8/Materials | Discovered new exit (range 15) 9232 | -8/Materials | Entered Garrison 9390 | -8/Garrison | Installed Relay Interface Framework 9508 | -8/Garrison | Triggered checkpoint 9575 | -8/Garrison | Lost 3 parts (1p2n) 9644 | -8/Garrison | Garrison Relay disabled 9746 | -8/Garrison | Learned Materials security intel 9748 | -8/Garrison | Build established: Scavenger-Mutant 9795 | -8/Garrison | Phase Generator disabled 10028 | -8/Garrison | Triggered checkpoint 10131 | -8/Garrison | Garrison Relay disabled 10159 | -8/Garrison | Discovered new exit (range 10) 10184 | -8/Garrison | Triggered checkpoint 10255 | -8/Garrison | Discovered new exit (range 3) 10332 | -8/Garrison | Triggered checkpoint 10430 | -8/Garrison | Entered Materials 10430 | -8/Materials | Accompanied by 1 ally 12001 | -8/Materials | Discovered new exit (range 11) 12368 | -8/Materials | Discovered new exit (range 7) 12447 | -8/Materials | Garrison activated, responded to threat 12632 | -8/Materials | Build established: Mutant 12712 | -8/Materials | Identified exit to Factory 12712 | -8/Materials | Entered Factory 12712 | -7/Factory | Accompanied by 2 allies 12712 | -7/Factory | Evolved 2 slots: Utility x2 13009 | -7/Factory | Build established: Hacker-Mutant 13328 | -7/Factory | Garrison activated, responded to threat 13369 | -7/Factory | Build established: Scavenger-Mutant 13450 | -7/Factory | Identified exit to Garrison 13450 | -7/Factory | Entered Garrison 13543 | -7/Garrison | Rescued a captive Derelict 13786 | -7/Garrison | Triggered checkpoint 13806 | -7/Garrison | Garrison Relay disabled 14010 | -7/Garrison | Triggered checkpoint 14139 | -7/Garrison | Discovered new exit (range 10) 14148 | -7/Garrison | Triggered checkpoint 14271 | -7/Garrison | Garrison Relay disabled 14360 | -7/Garrison | Triggered checkpoint 14508 | -7/Garrison | Lost 3 parts (1n1u1w) 14591 | -7/Garrison | Garrison Relay disabled 14625 | -7/Garrison | Discovered new exit (range 10) 14637 | -7/Garrison | Identified exit to Factory 14832 | -7/Garrison | Triggered checkpoint 14935 | -7/Garrison | Lost 3 allies 15140 | -7/Garrison | Triggered checkpoint 15335 | -7/Garrison | Triggered checkpoint 15417 | -7/Garrison | Discovered exit to Factory (range 37) 15417 | -7/Garrison | Discovered exit to Factory (range 15) 15417 | -7/Garrison | Discovered exit to Factory (range 54) 15450 | -7/Garrison | Expanded RIF knowledge: Watcher Feeds 15510 | -7/Garrison | Garrison Relay disabled 15582 | -7/Garrison | Entered Factory 15840 | -7/Factory | Build established: Bothacker-Mutant 15856 | -7/Factory | Discovered new exit (range 10) 15865 | -7/Factory | Identified exit to Lower Caves 16519 | -7/Factory | Discovered new exit (range 7) 16525 | -7/Factory | Identified exit to Factory 17033 | -7/Factory | Entered another Factory area 17033 | -6/Factory | Evolved 2 slots: Utility x2 17334 | -6/Factory | Build established: Hacker-Mutant 17671 | -6/Factory | Fabricated Imp. Terrain Scanner? 17745 | -6/Factory | Discovered new exit (range 11) 17806 | -6/Factory | Identified exit to Lower Caves 17978 | -6/Factory | Discovered new exit (range 13) 17993 | -6/Factory | Identified exit to Factory 18090 | -6/Factory | Identified exit to Extension 18358 | -6/Factory | Sucked down chute 18358 | -6/Factory | Entered Waste 18359 | -6/Waste | Joined by Warlord forces that had cleared the area 18665 | -6/Waste | Discovered new exit (range 15) 18753 | -6/Waste | Identified exit to Factory 18765 | -6/Waste | Entered Factory 18765 | -6/Factory | Accompanied by 18 allies 18825 | -6/Factory | Identified exit to DSF 18846 | -6/Factory | Entered DSF 18846 | -6/DSF | Accompanied by 18 allies 18857 | -6/DSF | Additional patrols routed to DSF 18894 | -6/DSF | Discovered exit to Factory (range 12) 19060 | -6/DSF | Sterilization system engaged 19065 | -6/DSF | Lost 3 allies 19080 | -6/DSF | Ambient heat levels rising (+10) 19095 | -6/DSF | Ambient heat levels rising (+10) 19110 | -6/DSF | Ambient heat levels rising (+10) 19115 | -6/DSF | Entered Factory 19115 | -5/Factory | Accompanied by 9 allies 19115 | -5/Factory | Evolved 2 slots: Utility x2 19415 | -5/Factory | First assault squad dispatched 19914 | -5/Factory | Identified exit to Factory 19914 | -5/Factory | Identified exit to Upper Caves 20190 | -5/Factory | Entered Upper Caves 20190 | -5/Upper Caves | Accompanied by 2 allies 20484 | -5/Upper Caves | Learned Factory trap positions 20620 | -5/Upper Caves | Learned location of Warlord (-5) 21084 | -5/Upper Caves | Attacked by a delusional Derelict stockpiling parts 21139 | -5/Upper Caves | Discovered new exit (range 9) 21147 | -5/Upper Caves | Identified exit to Upper Caves 21465 | -5/Upper Caves | Attracted the attention of an 0b10 checkpoint 21554 | -5/Upper Caves | Lost 3 parts (1p1u1w) 22090 | -5/Upper Caves | Entered another Upper Caves area 22090 | -5/Upper Caves | Accompanied by 2 allies 22097 | -5/Upper Caves | Learned Factory emergency access door positions 22115 | -5/Upper Caves | Attracted the attention of an 0b10 checkpoint 22591 | -5/Upper Caves | Discovered exit to Factory (range 8) 22911 | -5/Upper Caves | Spotted B-75 Beast 22954 | -5/Upper Caves | Destroyed B-75 Beast 23271 | -5/Upper Caves | Acquired the password to a Derelict Tinkerer's latest research 23298 | -5/Upper Caves | Found Prototype Special Weapon 23298 | -5/Upper Caves | Identified Molecular Deconstructor 23664 | -5/Upper Caves | Caught by Unaware searching for contraband prototypes 23705 | -5/Upper Caves | Caught by Unaware searching for contraband prototypes 23841 | -5/Upper Caves | Lost 4 parts (2n2u) 24166 | -5/Upper Caves | Lost 5 parts (2n1u2w) 24292 | -5/Upper Caves | Identified exit to Warlord 24432 | -5/Upper Caves | Entered Warlord 24607 | -5/Warlord | Discovered new exit (range 8) 24622 | -5/Warlord | Identified exit to Proximity Caves 24759 | -5/Warlord | System corruption cleaned by Quarantine Array 24833 | -5/Warlord | RIF detected upon attempting to enter Warlord's base 24833 | -5/Warlord | Attacked by Warlord forces 24898 | -5/Warlord | Lost 3 parts (2u1w) 24949 | -5/Warlord | Entered Proximity Caves 25143 | -4/Proximity Caves | Spotted B-86 Titan 25231 | -4/Proximity Caves | Spotter reported a threat 25236 | -4/Proximity Caves | Attracted the attention of an 0b10 checkpoint 25236 | -4/Proximity Caves | Core integrity fell below 50% 25257 | -4/Proximity Caves | Spotter reported a threat 25284 | -4/Proximity Caves | Spotter reported a threat 25315 | -4/Proximity Caves | Lost 3 parts (1n1u1w) 25467 | -4/Proximity Caves | Spotter reported a threat 25550 | -4/Proximity Caves | Discovered exit to Factory (range 5) 25553 | -4/Proximity Caves | Entered Factory 25553 | -4/Factory | Evolved 2 slots: Utility x1, Weapon x1 25554 | -4/Factory | Loaded intel: 99 trap records 25556 | -4/Factory | Build established: Mutant 25803 | -4/Factory | Search patrols dispatched 25863 | -4/Factory | Lost 4 parts (1p1n2w) 25969 | -4/Factory | Spotted B-86 Titan 25984 | -4/Factory | Lost 7 parts (4n3w) 26072 | -4/Factory | Spotted B-86 Titan 26089 | -4/Factory | Search patrols dispatched 26115 | -4/Factory | Identified exit to Garrison 26115 | -4/Factory | Entered Garrison 26119 | -4/Garrison | Triggered checkpoint 26130 | -4/Garrison | Learned Factory security intel 26145 | -4/Garrison | Expanded RIF knowledge: Hotswap 26213 | -4/Garrison | Spotted B-86 Titan 26218 | -4/Garrison | Core integrity fell below 50% 26249 | -4/Garrison | Discovered new exit (range 12) 26266 | -4/Garrison | Identified exit to Factory 26266 | -4/Garrison | Entered Factory 26516 | -4/Factory | Search patrols dispatched 26528 | -4/Factory | Discovered new exit (range 5) 26529 | -4/Factory | Identified exit to Upper Caves 26576 | -4/Factory | Entered Upper Caves 26661 | -4/Upper Caves | Learned Research terminal intel 27108 | -4/Upper Caves | Discovered new exit (range 9) 27114 | -4/Upper Caves | Identified exit to Upper Caves 27429 | -4/Upper Caves | Attracted the attention of an 0b10 outpost 27436 | -4/Upper Caves | System corruption reached 10% 27454 | -4/Upper Caves | Core integrity fell below 20% 27504 | -4/Upper Caves | Lost 11 parts (1p5n5u) 27516 | -4/Upper Caves | Entered another Upper Caves area 27519 | -4/Upper Caves | Discovered new exit (range 5) 27520 | -4/Upper Caves | Identified exit to Research 27521 | -4/Upper Caves | Entered Research 27521 | -3/Research | Evolved 2 slots: Propulsion x1, Utility x1 27522 | -3/Research | Identified exit to Armory 27523 | -3/Research | Loaded intel: 24 terminal locations 27809 | -3/Research | Core integrity fell below 50% 27855 | -3/Research | Lost 7 parts (3n4u) 27900 | -3/Research | Spotted B-86 Titan 27927 | -3/Research | Core integrity fell below 20% 27932 | -3/Research | Spotted B-86 Titan 27933 | -3/Research | Destroyed by B-86 Titan with Hardcell Cannon Last Messages --------------- 27903_ ALERT: Hostiles spotted, dispatching reinforcements to Terminal R007. 27905_ Terminal disabled. 27905_ K-01 Serf collects debris. 27907_ >> DECODED: Cmb. Gravmag System location. 27907_ K-01 Serf collects debris. 27908_ K-01 Serf cleans the Ion Accelerator. 27914_ ALERT: Hostiles spotted, dispatching reinforcements to Terminal R014. 27916_ System corrupted: Matter fused (-10). 27920_ U-05 Engineer builds a Wall. 27924_ U-05 Engineer destroyed. 27925_ >> DECODED: Linear Accelerator location. 27925_ K-01 Serf collects debris. 27925_ K-01 Serf destroyed. 27926_ Centrium Wheel destroyed. 27927_ Impulse Thruster Array destroyed. 27927_ Critical hit (Burn: +50). 27929_ Imp. Melee Analysis Suite destroyed. 27930_ Adv. Terrain Scan Processor destroyed. Map ----- +----------------------------------------------------+ | ?????????????????????????????????????????????????? | | ?????????????????????????????????????????????????? | | ?????????????????????????????????????????????????? | | ?????????????????????????????????????????????????? | | ?????????????????????????????????????????????????? | | ?????????????????????????????????????????????????? | | ?????????????????????????????????????????????????? | | ?????????????????????????????????????????????????? | | ?????????????????????????????????????????????????? | | ?????????????????????????????????????????????????? | | ?????????????????????????????????????????????????? | | ?????????????????????????????????????????????????? | | ?????????????????????????????????????????????????? | | ?????????????????????????????????????????????????? | | ?????????????????????????????????????????????????? | | ?????????????????????????????????????????????????? | | ?????????????????????????????????????????????????? | | ?????????????????????????????????????????????????? | | ?????????????????????????????????????????????????? | | ??????????????????????????????????#+#????????????? | | ?????????????????????##+#+####### ????????????T? | | ?????????????????? ??????????????? | | ??????????????????? ??????????????? | | +????????????????### ???????????????? | | #????????????????#BB """ "???????????????? | | ?????????????????#BB @ """ ""??????????????? | | ############+########### """ * """?????????????? | | !%= R ??????????? | | % ??????????? | | % ??????????? | | % ??????????? | | #####+#############;#############+####???????????? | | # #??? ???????????????????????????? | | [# #?# ?????????????????????????? | | " # #?# """ #????????????????????????? | | "" # #?# "F" #???????]????????????????? | | "" # #?# " #????????????????????????? | | # #?# """ /#????????????????????????? | | # #?#| """ #????????????????????????? | | #= #?# #????????????????????????? | | ##### #?# ???? #????????????????????????? | | ????##########?##?????###????????????????????????? | | ?????????????????????????????????????????????????? | | ?????????????????????????????????????????????????? | | ?????????????????????????????????????????????????? | | ?????????????????????????????????????????????????? | | ?????????????????????????????????????????????????? | | ?????????????????????????????????????????????????? | | ?????????????????????????????????????????????????? | | ?????????????????????????????????????????????????? | +----------------------------------------------------+ Best States ------------- Heat Dissipation 53 Coolant Potential 80 Energy Generation 18 Energy Capacity 310 Matter Stores 300 Matter Capacity 300 Sight Range 18 Robot Scan Range 16 Terrain Scan Range 16 Terrain Scan Density 210 ECM Strength 2 Jamming Range 14 Corruption Containment 12 Armor Coverage 225 Core Shielding 20 Evasion (%) 63 Melee Accuracy 16 Target Analysis 12 Recoil Reduction 4 Offensive Hacking 20 Defensive Hacking 20 Relay Coupler Types 3 Relay Coupler Value 76 Item Schematics ----------------- ECM Suite | -10/Materials | Hacked Grenade Launcher | -9/Materials | Scanalyzed Med. Armor Plating | -9/Materials | Scanalyzed EMP Blaster | -9/Materials | Scanalyzed Imp. Datajack | -8/Materials | Hacked System Shield | -8/Materials | Scanalyzed Imp. Sensor Array | -8/Materials | Scanalyzed Missile Launcher | -8/Materials | Scanalyzed Imp. Light Armor Plating | -8/Materials | Scanalyzed Imp. Signal Interpreter | -8/Materials | Scanalyzed Imp. Terrain Scanner | -8/Materials | Scanalyzed Katana | -8/Materials | Scanalyzed Flak Cannon | -8/Materials | Scanalyzed System Restoration Module | -6/Factory | Hacked Micro-nuke Launcher | -6/Factory | Scanalyzed Adv. Terrain Scan Processor | -6/Factory | Scanalyzed Imp. Medium Armor Plating | -6/Factory | Scanalyzed Hardcell Cannon | -6/Factory | Scanalyzed Remote Datajack | -6/Factory | Scanalyzed Adv. Datajack | -6/Factory | Scanalyzed Gravity Neutralizer | -6/Factory | Scanalyzed Imp. Arc Projector | -5/Factory | Scanalyzed Great Maul | -5/Factory | Scanalyzed Dispersion Rifle | -3/Research | Scanalyzed Robot Schematics ------------------ None Fabricated ------------ Imp. Terrain Scanner | x2 | -6/Factory Alien Tech Used ----------------- None Achievements -------------- None Challenges ------------ None Game ------ Seed HeavySingularityProtomatter Manual? 0 Play Time 03:48:17 Cumulative 122.5 hours Start 2024.09.15 @ 17:33:54 End 2024.09.17 @ 13:15:45 Sessions 7 Manual Loads 0 Difficulty Rogue Special Mode None Game No. 87 Rogue 84 Adventurer 3 Explorer 0 Win Type - Total 0 Types 0/0/0/0/0/0/0/0/0 Lore% 44 Gallery% 52 Achievement% 44 Wizard Run 0 Options --------- Layout 1 ASCII 0 Keyboard 1 Movement Vi Keybinds 0 Fullscreen 1 Font 28/SmallcapsGlow Map View 50x43 Zoom Use 0% Tactical HUD 1 Map Filters NONE Filters NONE Steam 1 RUN: abab4492-c74e-409d-9c02-de9dfb9eb1e0